[Event "Early-Titled-Tuesday-Blitz-January-23-2024"]
[Site "Chess.com"]
[Date "2024.01.23"]
[Round "3"]
[White "MusicCityMaster"]
[Black "xakevicius91"]
[Result "1-0"]
[WhiteElo "2425"]
[BlackElo "2575"]
[TimeControl "180+1"]
[EndTime "8:28:09 PST"]
[Termination "MusicCityMaster won by checkmate"]

1. d4 {[%clk 0:03:00.9]} 1... Nf6 {[%clk 0:02:58.7]} 2. c4 {[%clk 0:03:00.8]}
2... g6 {[%clk 0:02:58.4]} 3. Nc3 {[%clk 0:03:01.3]} 3... Bg7 {[%clk 0:02:58.8]}
4. e4 {[%clk 0:03:02]} 4... d6 {[%clk 0:02:59.1]} 5. Nf3 {[%clk 0:03:02.5]} 5...
O-O {[%clk 0:02:58.8]} 6. Be2 {[%clk 0:03:03]} 6... Nc6 {[%clk 0:02:59.4]} 7.
O-O {[%clk 0:03:03.4]} 7... Bg4 {[%clk 0:02:59.4]} 8. Be3 {[%clk 0:03:02.4]}
8... Bxf3 {[%clk 0:02:55.5]} 9. Bxf3 {[%clk 0:03:02.2]} 9... e5 {[%clk
0:02:56.4]} 10. d5 {[%clk 0:02:43.1]} 10... Nd4 {[%clk 0:02:55.9]} 11. Nb5
{[%clk 0:02:27.2]} 11... Nxf3+ {[%clk 0:02:53.9]} 12. Qxf3 {[%clk 0:02:28.1]}
12... a6 {[%clk 0:02:54.1]} 13. Na3 {[%clk 0:02:22.9]} 13... b6 {[%clk
0:02:50.8]} 14. b4 {[%clk 0:02:10.6]} 14... Nd7 {[%clk 0:02:47.8]} 15. c5 {[%clk
0:02:07.9]} 15... f5 {[%clk 0:02:42.6]} 16. cxd6 {[%clk 0:02:03]} 16... cxd6
{[%clk 0:02:40.1]} 17. Nc4 {[%clk 0:02:02.3]} 17... f4 {[%clk 0:02:28.1]} 18.
Bd2 {[%clk 0:02:01.6]} 18... Qe7 {[%clk 0:02:27]} 19. Qg4 {[%clk 0:01:53.4]}
19... Rfe8 {[%clk 0:02:18.7]} 20. Rfd1 {[%clk 0:01:46.5]} 20... Nf6 {[%clk
0:02:08.8]} 21. Qe6+ {[%clk 0:01:45.9]} 21... Qxe6 {[%clk 0:02:09]} 22. dxe6
{[%clk 0:01:46.8]} 22... Nxe4 {[%clk 0:01:58.4]} 23. Nxb6 {[%clk 0:01:46.8]}
23... Rab8 {[%clk 0:01:55]} 24. Nd5 {[%clk 0:01:43.4]} 24... Rb7 {[%clk
0:01:39.5]} 25. Rac1 {[%clk 0:01:40.8]} 25... Rxe6 {[%clk 0:01:10.5]} 26. Be1
{[%clk 0:01:40.6]} 26... Re8 {[%clk 0:01:00]} 27. Rc6 {[%clk 0:01:38.2]} 27...
Ra8 {[%clk 0:00:43.2]} 28. f3 {[%clk 0:01:33.6]} 28... Nf6 {[%clk 0:00:43.5]}
29. Rxd6 {[%clk 0:00:51.2]} 29... Nxd5 {[%clk 0:00:38.7]} 30. R6xd5 {[%clk
0:00:51.2]} 30... Bf8 {[%clk 0:00:33.5]} 31. a3 {[%clk 0:00:50]} 31... a5 {[%clk
0:00:32.7]} 32. bxa5 {[%clk 0:00:46.9]} 32... Bxa3 {[%clk 0:00:33.6]} 33. Rxe5
{[%clk 0:00:45.6]} 33... Bb4 {[%clk 0:00:31.4]} 34. Bxb4 {[%clk 0:00:36.6]}
34... Rxb4 {[%clk 0:00:32.3]} 35. Ra1 {[%clk 0:00:31.6]} 35... Ra6 {[%clk
0:00:32.1]} 36. h3 {[%clk 0:00:24.6]} 36... Kg7 {[%clk 0:00:31.6]} 37. Ra2
{[%clk 0:00:24.4]} 37... Kf6 {[%clk 0:00:30.6]} 38. Rc5 {[%clk 0:00:24.7]} 38...
h5 {[%clk 0:00:28.5]} 39. Kf2 {[%clk 0:00:24.7]} 39... Rb3 {[%clk 0:00:25.3]}
40. Ke2 {[%clk 0:00:24.3]} 40... Rb1 {[%clk 0:00:20.4]} 41. Kd3 {[%clk
0:00:21.4]} 41... Re1 {[%clk 0:00:18.2]} 42. Kc4 {[%clk 0:00:20.9]} 42... Rb1
{[%clk 0:00:16.3]} 43. Rb5 {[%clk 0:00:19.8]} 43... Rc6+ {[%clk 0:00:15.8]} 44.
Kd5 {[%clk 0:00:19.5]} 44... Rc8 {[%clk 0:00:13.1]} 45. Rxb1 {[%clk 0:00:18.8]}
45... Kf5 {[%clk 0:00:12.9]} 46. Kd4 {[%clk 0:00:17.3]} 46... Rd8+ {[%clk
0:00:13.6]} 47. Kc3 {[%clk 0:00:16.8]} 47... Rc8+ {[%clk 0:00:14.3]} 48. Kd3
{[%clk 0:00:17.1]} 48... Rd8+ {[%clk 0:00:14.6]} 49. Ke2 {[%clk 0:00:17.6]}
49... Kg5 {[%clk 0:00:15.3]} 50. Rb5+ {[%clk 0:00:16.8]} 50... Kh4 {[%clk
0:00:15.5]} 51. a6 {[%clk 0:00:17.1]} 51... Kg3 {[%clk 0:00:16.4]} 52. a7 {[%clk
0:00:16.7]} 52... Re8+ {[%clk 0:00:17]} 53. Kf1 {[%clk 0:00:15.8]} 53... Rd8
{[%clk 0:00:17.7]} 54. a8=Q {[%clk 0:00:15.8]} 54... Rd1+ {[%clk 0:00:17.8]} 55.
Ke2 {[%clk 0:00:16.3]} 55... Rg1 {[%clk 0:00:18.7]} 56. Kd3 {[%clk 0:00:16.3]}
56... Rxg2 {[%clk 0:00:18.8]} 57. Rxg2+ {[%clk 0:00:15.8]} 57... Kxg2 {[%clk
0:00:19]} 58. Rg5+ {[%clk 0:00:16]} 58... Kxh3 {[%clk 0:00:19.9]} 59. Qe4 {[%clk
0:00:14.4]} 59... h4 {[%clk 0:00:20.6]} 60. Qe6+ {[%clk 0:00:14.5]} 60... Kh2
{[%clk 0:00:20.9]} 61. Qg4 {[%clk 0:00:14.4]} 61... h3 {[%clk 0:00:21.8]} 62.
Qg1# {[%clk 0:00:14.3]} 1-0

[Event "Early-Titled-Tuesday-Blitz-January-23-2024"]
[Site "Chess.com"]
[Date "2024.01.23"]
[Round "3"]
[White "PawnEatingZombie"]
[Black "alekroth65"]
[Result "1-0"]
[WhiteElo "2110"]
[BlackElo "2347"]
[TimeControl "180+1"]
[EndTime "8:28:09 PST"]
[Termination "PawnEatingZombie won on time"]

1. e4 {[%clk 0:03:00.9]} 1... e5 {[%clk 0:02:57.6]} 2. Nf3 {[%clk 0:03:01]} 2...
Nc6 {[%clk 0:02:57.2]} 3. Nc3 {[%clk 0:03:00.9]} 3... Nf6 {[%clk 0:02:55.4]} 4.
Bb5 {[%clk 0:03:01.4]} 4... Bb4 {[%clk 0:02:54.8]} 5. O-O {[%clk 0:02:58.3]}
5... d6 {[%clk 0:02:53.3]} 6. d3 {[%clk 0:02:51.4]} 6... h6 {[%clk 0:02:42.8]}
7. Bxc6+ {[%clk 0:02:50.9]} 7... bxc6 {[%clk 0:02:41.7]} 8. Ne2 {[%clk
0:02:51.2]} 8... Bg4 {[%clk 0:02:34.7]} 9. Ng3 {[%clk 0:02:50.3]} 9... Qd7
{[%clk 0:02:34]} 10. h3 {[%clk 0:02:49.3]} 10... Be6 {[%clk 0:02:31.6]} 11. Nh2
{[%clk 0:02:45]} 11... g5 {[%clk 0:02:28.4]} 12. c3 {[%clk 0:02:41.3]} 12... Ba5
{[%clk 0:02:26.4]} 13. d4 {[%clk 0:02:40.3]} 13... Bb6 {[%clk 0:02:10.5]} 14.
Be3 {[%clk 0:02:36.3]} 14... Rg8 {[%clk 0:02:00.2]} 15. dxe5 {[%clk 0:02:17.6]}
15... dxe5 {[%clk 0:02:01.1]} 16. Qxd7+ {[%clk 0:02:16.7]} 16... Nxd7 {[%clk
0:02:01.4]} 17. Rfe1 {[%clk 0:02:09.3]} 17... Ke7 {[%clk 0:01:57.7]} 18. Ng4
{[%clk 0:02:07]} 18... Rg6 {[%clk 0:01:41.7]} 19. Nf5+ {[%clk 0:01:58.3]} 19...
Bxf5 {[%clk 0:01:37.5]} 20. exf5 {[%clk 0:01:59.2]} 20... Rd6 {[%clk 0:01:37.1]}
21. f6+ {[%clk 0:01:34.2]} 21... Ke6 {[%clk 0:01:27.8]} 22. Nxh6 {[%clk
0:01:23.7]} 22... Kxf6 {[%clk 0:01:19.3]} 23. Ng4+ {[%clk 0:01:20.4]} 23... Kg6
{[%clk 0:01:19.1]} 24. Bxb6 {[%clk 0:01:18.9]} 24... axb6 {[%clk 0:01:17.2]} 25.
Nxe5+ {[%clk 0:01:18.7]} 25... Nxe5 {[%clk 0:01:16.5]} 26. Rxe5 {[%clk 0:01:19]}
26... Rd2 {[%clk 0:01:15.6]} 27. Re7 {[%clk 0:01:14.3]} 27... Ra7 {[%clk
0:01:09.6]} 28. b3 {[%clk 0:01:09.8]} 28... Kf6 {[%clk 0:01:08.1]} 29. Re8
{[%clk 0:00:57.9]} 29... Raxa2 {[%clk 0:00:57.2]} 30. Rxa2 {[%clk 0:00:56.6]}
30... Rxa2 {[%clk 0:00:57.7]} 31. Rc8 {[%clk 0:00:57.1]} 31... Ra7 {[%clk
0:00:56.6]} 32. Kf1 {[%clk 0:00:55.5]} 32... Ke7 {[%clk 0:00:49.5]} 33. Ke2
{[%clk 0:00:54.7]} 33... c5 {[%clk 0:00:46.6]} 34. Kd3 {[%clk 0:00:50.2]} 34...
Kd6 {[%clk 0:00:42.6]} 35. Rf8 {[%clk 0:00:34.4]} 35... Ke7 {[%clk 0:00:41.5]}
36. Rg8 {[%clk 0:00:29.2]} 36... Ra2 {[%clk 0:00:39]} 37. Rxg5 {[%clk
0:00:26.5]} 37... Rxf2 {[%clk 0:00:38.6]} 38. h4 {[%clk 0:00:25.1]} 38... Rf6
{[%clk 0:00:35.9]} 39. h5 {[%clk 0:00:24]} 39... Rd6+ {[%clk 0:00:33.8]} 40. Kc4
{[%clk 0:00:23.4]} 40... Kf6 {[%clk 0:00:30.4]} 41. Rg8 {[%clk 0:00:20.6]} 41...
Rd1 {[%clk 0:00:24.9]} 42. g4 {[%clk 0:00:20.5]} 42... Rh1 {[%clk 0:00:20.3]}
43. g5+ {[%clk 0:00:19.9]} 43... Ke7 {[%clk 0:00:20.1]} 44. h6 {[%clk
0:00:20.4]} 44... Ke6 {[%clk 0:00:18.4]} 45. Rg7 {[%clk 0:00:20]} 45... c6
{[%clk 0:00:17.4]} 46. h7 {[%clk 0:00:18]} 46... Rh4+ {[%clk 0:00:16.4]} 47. Kd3
{[%clk 0:00:18.5]} 47... b5 {[%clk 0:00:13.7]} 48. b4 {[%clk 0:00:14.4]} 48...
c4+ {[%clk 0:00:12.7]} 49. Ke3 {[%clk 0:00:14.9]} 49... Kf5 {[%clk 0:00:01.6]}
50. Kf3 {[%clk 0:00:14.6]} 1-0

[Event "Early-Titled-Tuesday-Blitz-January-23-2024"]
[Site "Chess.com"]
[Date "2024.01.23"]
[Round "3"]
[White "ChessQueen"]
[Black "sergoy"]
[Result "1/2-1/2"]
[WhiteElo "2734"]
[BlackElo "3014"]
[TimeControl "180+1"]
[EndTime "8:28:11 PST"]
[Termination "Game drawn by repetition"]

1. d4 {[%clk 0:03:00.9]} 1... d5 {[%clk 0:02:58.5]} 2. Nf3 {[%clk 0:02:59.8]}
2... Nf6 {[%clk 0:02:58.7]} 3. c4 {[%clk 0:02:59.8]} 3... c6 {[%clk 0:02:59.1]}
4. cxd5 {[%clk 0:02:59.1]} 4... cxd5 {[%clk 0:02:59.3]} 5. Nc3 {[%clk
0:02:59.2]} 5... Nc6 {[%clk 0:03:00]} 6. Bf4 {[%clk 0:02:59.2]} 6... a6 {[%clk
0:03:00.7]} 7. e3 {[%clk 0:02:56.2]} 7... Bg4 {[%clk 0:03:00.8]} 8. h3 {[%clk
0:02:54.4]} 8... Bxf3 {[%clk 0:02:59.7]} 9. Qxf3 {[%clk 0:02:52.9]} 9... e6
{[%clk 0:03:00.3]} 10. Bd3 {[%clk 0:02:50.3]} 10... Bd6 {[%clk 0:02:59.3]} 11.
Bg5 {[%clk 0:02:50.1]} 11... h6 {[%clk 0:02:53.1]} 12. Bh4 {[%clk 0:02:48.3]}
12... Be7 {[%clk 0:02:21.6]} 13. O-O {[%clk 0:02:42.3]} 13... O-O {[%clk
0:02:21.9]} 14. Rac1 {[%clk 0:02:30.9]} 14... Rc8 {[%clk 0:02:21.3]} 15. Bb1
{[%clk 0:02:29.5]} 15... Na5 {[%clk 0:02:17.8]} 16. Qe2 {[%clk 0:02:22.3]} 16...
Nc4 {[%clk 0:02:17.8]} 17. b3 {[%clk 0:02:02.2]} 17... Nd6 {[%clk 0:02:16.2]}
18. Na4 {[%clk 0:01:56.4]} 18... Nde4 {[%clk 0:02:13.6]} 19. f3 {[%clk
0:01:53.1]} 19... Nd6 {[%clk 0:02:11]} 20. Nc5 {[%clk 0:01:48.3]} 20... Re8
{[%clk 0:02:05.8]} 21. Qd3 {[%clk 0:01:40.8]} 21... g6 {[%clk 0:02:02.5]} 22.
Nxe6 {[%clk 0:01:36.7]} 22... Qa5 {[%clk 0:01:51.7]} 23. Nc5 {[%clk 0:01:17.1]}
23... Nf5 {[%clk 0:01:49.3]} 24. Bf2 {[%clk 0:01:10.6]} 24... b6 {[%clk
0:01:14.8]} 25. Nxa6 {[%clk 0:01:00.4]} 25... Rxc1 {[%clk 0:01:10.8]} 26. Rxc1
{[%clk 0:01:01.3]} 26... Nh5 {[%clk 0:01:11.5]} 27. g4 {[%clk 0:00:52.4]} 27...
Ba3 {[%clk 0:00:27.6]} 28. b4 {[%clk 0:00:39.1]} 28... Qa4 {[%clk 0:00:25.1]}
29. Rc3 {[%clk 0:00:35.7]} 29... Bb2 {[%clk 0:00:22.6]} 30. Rc2 {[%clk
0:00:25.4]} 30... Nxd4 {[%clk 0:00:20.8]} 31. exd4 {[%clk 0:00:21.8]} 31... Nf4
{[%clk 0:00:20.8]} 32. Qf1 {[%clk 0:00:20.6]} 32... Qa3 {[%clk 0:00:18.4]} 33.
Nc7 {[%clk 0:00:20.5]} 33... Re7 {[%clk 0:00:13.8]} 34. Bg3 {[%clk 0:00:18.3]}
34... Bxd4+ {[%clk 0:00:13.1]} 35. Kh2 {[%clk 0:00:18.2]} 35... Be5 {[%clk
0:00:11.7]} 36. Nb5 {[%clk 0:00:16.3]} 36... Qxb4 {[%clk 0:00:12.1]} 37. a3
{[%clk 0:00:14.5]} 37... Qb3 {[%clk 0:00:12.1]} 38. Nd4 {[%clk 0:00:12.8]} 38...
Bxd4 {[%clk 0:00:07.4]} 39. Bxf4 {[%clk 0:00:12.8]} 39... Bc5 {[%clk 0:00:06.3]}
40. Bg3 {[%clk 0:00:12.3]} 40... Qxa3 {[%clk 0:00:06.7]} 41. Re2 {[%clk
0:00:12]} 41... Rxe2+ {[%clk 0:00:05.2]} 42. Qxe2 {[%clk 0:00:12.9]} 42... Qb4
{[%clk 0:00:03.5]} 43. Ba2 {[%clk 0:00:12.9]} 43... Qd4 {[%clk 0:00:03.2]} 44.
Qe8+ {[%clk 0:00:11]} 44... Bf8 {[%clk 0:00:03.6]} 45. Qe2 {[%clk 0:00:11.3]}
45... Bc5 {[%clk 0:00:03.5]} 46. Qe8+ {[%clk 0:00:10]} 46... Bf8 {[%clk
0:00:03.8]} 47. Qe2 {[%clk 0:00:09.5]} 47... Bc5 {[%clk 0:00:04.2]} 1/2-1/2

[Event "Early-Titled-Tuesday-Blitz-January-23-2024"]
[Site "Chess.com"]
[Date "2024.01.23"]
[Round "3"]
[White "Russian_berezka"]
[Black "Binary010"]
[Result "0-1"]
[WhiteElo "2596"]
[BlackElo "2891"]
[TimeControl "180+1"]
[EndTime "8:28:11 PST"]
[Termination "Binary010 won on time"]

1. d4 {[%clk 0:03:00.8]} 1... Nf6 {[%clk 0:02:59.4]} 2. Bf4 {[%clk 0:03:00.8]}
2... d5 {[%clk 0:02:58.8]} 3. e3 {[%clk 0:03:00.6]} 3... c5 {[%clk 0:02:58.2]}
4. c3 {[%clk 0:03:01.3]} 4... Nc6 {[%clk 0:02:58.1]} 5. Nd2 {[%clk 0:03:01.3]}
5... Bf5 {[%clk 0:02:57.2]} 6. Qb3 {[%clk 0:03:01.3]} 6... Qc8 {[%clk
0:02:56.7]} 7. Ngf3 {[%clk 0:03:00.8]} 7... c4 {[%clk 0:02:51.7]} 8. Qd1 {[%clk
0:03:01.4]} 8... e6 {[%clk 0:02:52.3]} 9. h3 {[%clk 0:03:00.9]} 9... h6 {[%clk
0:02:51.6]} 10. Be2 {[%clk 0:03:00.8]} 10... Be7 {[%clk 0:02:51.7]} 11. a4
{[%clk 0:02:58.8]} 11... O-O {[%clk 0:02:51.1]} 12. O-O {[%clk 0:02:58.9]} 12...
b6 {[%clk 0:02:33]} 13. Ne5 {[%clk 0:02:57.9]} 13... a6 {[%clk 0:02:31.7]} 14.
Bf3 {[%clk 0:02:55.6]} 14... Nxe5 {[%clk 0:02:27.8]} 15. Bxe5 {[%clk 0:02:46.4]}
15... Bd3 {[%clk 0:02:25.7]} 16. Be2 {[%clk 0:02:40.7]} 16... Bh7 {[%clk
0:02:16.1]} 17. Bxf6 {[%clk 0:02:35.3]} 17... Bxf6 {[%clk 0:02:15.8]} 18. Bf3
{[%clk 0:02:30.7]} 18... b5 {[%clk 0:02:02.8]} 19. e4 {[%clk 0:02:27]} 19... Qd7
{[%clk 0:02:01.9]} 20. axb5 {[%clk 0:02:15]} 20... axb5 {[%clk 0:02:02]} 21. b4
{[%clk 0:02:15]} 21... Bg5 {[%clk 0:01:44.7]} 22. Qe2 {[%clk 0:01:32.3]} 22...
Bxd2 {[%clk 0:01:22.9]} 23. Qxd2 {[%clk 0:01:33]} 23... dxe4 {[%clk 0:01:13.9]}
24. Be2 {[%clk 0:01:32.8]} 24... e5 {[%clk 0:01:13.8]} 25. d5 {[%clk 0:01:12.5]}
25... Bg6 {[%clk 0:01:11.9]} 26. Rxa8 {[%clk 0:01:10.7]} 26... Rxa8 {[%clk
0:01:10.4]} 27. Rd1 {[%clk 0:01:11.6]} 27... Qd6 {[%clk 0:01:03.8]} 28. Qe3
{[%clk 0:01:09.3]} 28... Rc8 {[%clk 0:00:44.1]} 29. Qa7 {[%clk 0:01:06.9]} 29...
Kh7 {[%clk 0:00:35.1]} 30. h4 {[%clk 0:00:59.6]} 30... f5 {[%clk 0:00:30]} 31.
Qb7 {[%clk 0:00:34.1]} 31... Rb8 {[%clk 0:00:29.9]} 32. Qa7 {[%clk 0:00:33.8]}
32... Be8 {[%clk 0:00:21.2]} 33. Qc5 {[%clk 0:00:32]} 33... Rd8 {[%clk
0:00:20.9]} 34. Qe3 {[%clk 0:00:30]} 34... Bf7 {[%clk 0:00:16]} 35. Qa7 {[%clk
0:00:21.5]} 35... Rd7 {[%clk 0:00:13.3]} 36. Qa8 {[%clk 0:00:17.8]} 36... Bxd5
{[%clk 0:00:12.7]} 37. Qe8 {[%clk 0:00:17.6]} 37... Qe6 {[%clk 0:00:12.3]} 38.
Qc8 {[%clk 0:00:13.9]} 38... Qc6 {[%clk 0:00:10.7]} 39. Qe8 {[%clk 0:00:12.3]}
39... Be6 {[%clk 0:00:10.8]} 40. Ra1 {[%clk 0:00:11.5]} 40... Rd1+ {[%clk
0:00:10]} 41. Rxd1 {[%clk 0:00:09.3]} 41... Qxe8 {[%clk 0:00:10.9]} 42. Rd6
{[%clk 0:00:06.1]} 42... f4 {[%clk 0:00:10.7]} 43. Rb6 {[%clk 0:00:03.8]} 43...
Bf5 {[%clk 0:00:10.9]} 0-1

[Event "Early-Titled-Tuesday-Blitz-January-23-2024"]
[Site "Chess.com"]
[Date "2024.01.23"]
[Round "3"]
[White "s4p0ud"]
[Black "RodokininEV"]
[Result "1-0"]
[WhiteElo "2503"]
[BlackElo "2614"]
[TimeControl "180+1"]
[EndTime "8:28:11 PST"]
[Termination "s4p0ud won by resignation"]

1. e4 {[%clk 0:02:59.8]} 1... c5 {[%clk 0:02:56.1]} 2. b3 {[%clk 0:02:56.4]}
2... Nc6 {[%clk 0:02:53.1]} 3. Bb2 {[%clk 0:02:56.3]} 3... b6 {[%clk 0:02:52.5]}
4. Bb5 {[%clk 0:02:27.3]} 4... Bb7 {[%clk 0:02:50.1]} 5. Nf3 {[%clk 0:02:27.5]}
5... e6 {[%clk 0:02:44.5]} 6. O-O {[%clk 0:02:25.2]} 6... Nf6 {[%clk 0:02:42.9]}
7. Re1 {[%clk 0:02:21.8]} 7... Be7 {[%clk 0:02:41.4]} 8. c3 {[%clk 0:02:19.3]}
8... O-O {[%clk 0:02:39.6]} 9. d4 {[%clk 0:02:16.4]} 9... cxd4 {[%clk
0:02:32.8]} 10. cxd4 {[%clk 0:02:15.6]} 10... d5 {[%clk 0:02:33.2]} 11. e5
{[%clk 0:02:09.2]} 11... Ne4 {[%clk 0:02:33.2]} 12. Nbd2 {[%clk 0:02:07.1]}
12... Nb4 {[%clk 0:02:28.3]} 13. a3 {[%clk 0:02:02.9]} 13... Na6 {[%clk
0:02:23.9]} 14. Nxe4 {[%clk 0:01:59.1]} 14... dxe4 {[%clk 0:02:24.2]} 15. Nd2
{[%clk 0:01:57.5]} 15... Nc7 {[%clk 0:02:23.3]} 16. Bf1 {[%clk 0:01:51.4]} 16...
f5 {[%clk 0:02:19]} 17. exf6 {[%clk 0:01:47.1]} 17... Bxf6 {[%clk 0:02:18.1]}
18. Nxe4 {[%clk 0:01:47.2]} 18... Nd5 {[%clk 0:02:13.9]} 19. g3 {[%clk
0:01:45.1]} 19... Rc8 {[%clk 0:02:12]} 20. Rc1 {[%clk 0:01:37.4]} 20... Qd7
{[%clk 0:02:08.4]} 21. Rxc8 {[%clk 0:01:34.2]} 21... Rxc8 {[%clk 0:02:09.3]} 22.
Bc4 {[%clk 0:01:30.6]} 22... Be7 {[%clk 0:02:02.9]} 23. Qh5 {[%clk 0:01:24.1]}
23... Rf8 {[%clk 0:01:51]} 24. Qg4 {[%clk 0:01:17.3]} 24... Rf5 {[%clk 0:01:44]}
25. h4 {[%clk 0:01:10.3]} 25... b5 {[%clk 0:01:35.2]} 26. Bd3 {[%clk 0:01:06.9]}
26... Rf7 {[%clk 0:01:35.3]} 27. Ng5 {[%clk 0:01:02.8]} 27... Bxg5 {[%clk
0:01:32.8]} 28. hxg5 {[%clk 0:01:00.5]} 28... Re7 {[%clk 0:01:33.2]} 29. Qe2
{[%clk 0:01:00.5]} 29... a6 {[%clk 0:01:28.1]} 30. Qc2 {[%clk 0:00:37.1]} 30...
g6 {[%clk 0:01:25.6]} 31. Re5 {[%clk 0:00:33.8]} 31... Rf7 {[%clk 0:01:22.2]}
32. Be4 {[%clk 0:00:32.1]} 32... Kg7 {[%clk 0:01:18.6]} 33. Bg2 {[%clk
0:00:29.1]} 33... Kg8 {[%clk 0:01:16.4]} 34. Bh3 {[%clk 0:00:24.7]} 34... Re7
{[%clk 0:01:14.5]} 35. Qe2 {[%clk 0:00:23.5]} 35... Kf7 {[%clk 0:01:11]} 36.
Qf3+ {[%clk 0:00:20.1]} 36... Kg8 {[%clk 0:01:11.3]} 37. Qe4 {[%clk 0:00:17.7]}
37... Kf7 {[%clk 0:01:03]} 38. Qh4 {[%clk 0:00:18.2]} 38... Kg8 {[%clk
0:01:01.3]} 39. Qe4 {[%clk 0:00:16.6]} 39... Bc8 {[%clk 0:00:57.7]} 40. b4
{[%clk 0:00:07.9]} 40... Qe8 {[%clk 0:00:54]} 41. Qe2 {[%clk 0:00:03.8]} 41...
Kg7 {[%clk 0:00:46.3]} 42. f4 {[%clk 0:00:03.9]} 42... Qc6 {[%clk 0:00:39.4]}
43. Bg2 {[%clk 0:00:03.9]} 43... Qd6 {[%clk 0:00:37.4]} 44. Bxd5 {[%clk
0:00:04]} 44... Rc7 {[%clk 0:00:31.8]} 45. Bxe6 {[%clk 0:00:03.4]} 45... Bb7
{[%clk 0:00:27.6]} 46. d5 {[%clk 0:00:03.5]} 46... Rc4 {[%clk 0:00:22.4]} 47.
Re4+ {[%clk 0:00:03.7]} 47... Kf8 {[%clk 0:00:20.6]} 48. Rxc4 {[%clk 0:00:04.6]}
48... bxc4 {[%clk 0:00:19.6]} 49. Qe5 {[%clk 0:00:05.3]} 49... Qxe5 {[%clk
0:00:16.4]} 50. fxe5 {[%clk 0:00:04.3]} 50... Ke7 {[%clk 0:00:17.3]} 51. Bd4
{[%clk 0:00:04.4]} 51... Ba8 {[%clk 0:00:15.1]} 52. Kf2 {[%clk 0:00:04.7]} 1-0

[Event "Early-Titled-Tuesday-Blitz-January-23-2024"]
[Site "Chess.com"]
[Date "2024.01.23"]
[Round "3"]
[White "itsdsyr"]
[Black "kubal123"]
[Result "1-0"]
[WhiteElo "2248"]
[BlackElo "2416"]
[TimeControl "180+1"]
[EndTime "8:28:11 PST"]
[Termination "itsdsyr won on time"]

1. d4 {[%clk 0:02:59.5]} 1... Nf6 {[%clk 0:02:54.5]} 2. c4 {[%clk 0:02:59]} 2...
e6 {[%clk 0:02:54.1]} 3. Nf3 {[%clk 0:02:58.2]} 3... d5 {[%clk 0:02:53.3]} 4.
Nc3 {[%clk 0:02:54.9]} 4... dxc4 {[%clk 0:02:52.3]} 5. e4 {[%clk 0:02:47.6]}
5... Bb4 {[%clk 0:02:45.6]} 6. Bxc4 {[%clk 0:02:47.2]} 6... Nxe4 {[%clk
0:02:43.8]} 7. O-O {[%clk 0:02:42.3]} 7... Nxc3 {[%clk 0:02:42.4]} 8. bxc3
{[%clk 0:02:42]} 8... Be7 {[%clk 0:02:43.3]} 9. Bf4 {[%clk 0:02:29.5]} 9... O-O
{[%clk 0:02:42.1]} 10. Rb1 {[%clk 0:01:58.5]} 10... Nc6 {[%clk 0:02:18.8]} 11.
Re1 {[%clk 0:01:47.3]} 11... Bf6 {[%clk 0:02:07.7]} 12. Bd3 {[%clk 0:01:40.4]}
12... Ne7 {[%clk 0:01:58.7]} 13. Qe2 {[%clk 0:01:37.2]} 13... Ng6 {[%clk
0:01:37.8]} 14. Bg3 {[%clk 0:01:36.8]} 14... Qd5 {[%clk 0:01:36]} 15. c4 {[%clk
0:01:31.1]} 15... Qa5 {[%clk 0:01:24.5]} 16. Rb5 {[%clk 0:01:23.8]} 16... Qa3
{[%clk 0:01:16.4]} 17. Bxc7 {[%clk 0:01:20.2]} 17... Bd7 {[%clk 0:01:15.2]} 18.
Rxb7 {[%clk 0:01:14.8]} 18... Bc6 {[%clk 0:01:15.4]} 19. Rb3 {[%clk 0:01:14.5]}
19... Qe7 {[%clk 0:01:15.6]} 20. Bg3 {[%clk 0:00:53.5]} 20... Bxf3 {[%clk
0:01:12.8]} 21. Qxf3 {[%clk 0:00:54.4]} 21... Bxd4 {[%clk 0:01:13.2]} 22. h3
{[%clk 0:00:39]} 22... Rad8 {[%clk 0:01:09.6]} 23. Reb1 {[%clk 0:00:34.7]} 23...
e5 {[%clk 0:00:40.7]} 24. Be4 {[%clk 0:00:31.7]} 24... f6 {[%clk 0:00:11.2]} 25.
Rb7 {[%clk 0:00:30.1]} 25... Qc5 {[%clk 0:00:10.6]} 26. Bd5+ {[%clk 0:00:29.9]}
26... Kh8 {[%clk 0:00:10.7]} 27. h4 {[%clk 0:00:28.1]} 27... Ne7 {[%clk
0:00:10.7]} 28. R1b5 {[%clk 0:00:21]} 28... Qd6 {[%clk 0:00:10.8]} 29. h5 {[%clk
0:00:17.9]} 29... Nxd5 {[%clk 0:00:10.4]} 30. Rxd5 {[%clk 0:00:17.8]} 30... Qa6
{[%clk 0:00:10.3]} 31. Rxd8 {[%clk 0:00:16.5]} 31... Rxd8 {[%clk 0:00:09.9]} 32.
h6 {[%clk 0:00:15]} 32... g6 {[%clk 0:00:10.2]} 33. Rg7 {[%clk 0:00:13.9]} 33...
Rf8 {[%clk 0:00:07.2]} 34. Qd5 {[%clk 0:00:13.1]} 34... Qxa2 {[%clk 0:00:06]}
35. Qd7 {[%clk 0:00:12.4]} 35... Qb1+ {[%clk 0:00:06]} 36. Kh2 {[%clk
0:00:11.7]} 36... g5 {[%clk 0:00:06.9]} 37. Rf7 {[%clk 0:00:09]} 37... Rg8
{[%clk 0:00:03.8]} 38. Rg7 {[%clk 0:00:07.5]} 38... Rf8 {[%clk 0:00:03.5]} 39.
Qe7 {[%clk 0:00:07.2]} 39... Rb8 {[%clk 0:00:02.4]} 40. Qxf6 {[%clk 0:00:07.3]}
40... Qe4 {[%clk 0:00:01.5]} 41. Rf7+ {[%clk 0:00:06.7]} 1-0